[Event "NED-ch Women 2018"]
[Site "Amsterdam"]
[Date "2018.07.03"]
[Round "1"]
[White "Peng, Zhaoqin"]
[Black "Hortensius, Lisa"]
[Result "1-0"]
[ECO "A34"]
[WhiteElo "2352"]
[BlackElo "2169"]
[Annotator "ChessBase"]
[PlyCount "111"]
[EventDate "2018.07.02"]
[EventType "tourn"]
[EventCountry "NED"]
[SourceTitle "playchess.com"]
[Source "ChessBase"]
[SourceQuality "1"]
[TimeControl "40/5400+30:1800+30"]

1. e4 {[%emt 0:00:00]} c5 {[%emt 0:00:02]} 2. Nf3 {[%emt 0:00:00]} e6 {[%emt 0:01:26]} 3. c4 {[%emt 0:00:14]} Nc6 {[%emt 0:03:07]} 4. Nc3 {[%emt 0:02:18]} Nf6 {[%emt 0:11:06]} 5. Be2 {[%emt 0:00:08]} Be7 {[%emt 0:05:27]} 6. d4 {[%emt 0:05:01]} cxd4 {[%emt 0:04:26]} 7. Nxd4 {[%emt 0:00:04]} Qc7 {[%emt 0:03:32]} 8. Ndb5 {[%emt 0:07:10]} Qb8 {[%emt 0:04:18]} 9. Be3 {[%emt 0:00:06]} a6 {[%emt 0:14:24]} 10. Nd4 {[%emt 0:00:04]} O-O {[%emt 0:04:06]} 11. O-O {[%emt 0:01:25]} d6 {[%emt 0:03:58]} 12. Rc1 {[%emt 0:21:49]} Ne5 {[%emt 0:07:19]} 13. f4 {[%emt 0:04:18]} Ned7 {[%emt 0:01:36]} 14. Bf3 {[%emt 0:07:18]} h6 {[%emt 0:06:05]} 15. g4 {[%emt 0:05:04]} Nh7 {[%emt 0:00:38]} 16. Bg2 {[%emt 0:04:41]} g5 {[%emt 0:07:08]} 17. h4 {[%emt 0:08:13]} Kg7 {[%emt 0:09:44]} 18. Qd2 {[%emt 0:06:04]} Rg8 {[%emt 0:01:21]} 19. Qf2 {[%emt 0:06:37]} gxh4 {[%emt 0:03:22]} 20. Kh1 {[%emt 0:01:25]} Qc7 {[%emt 0:02:39]} 21. Nf3 {[%emt 0:06:02]} Qd8 {[%emt 0:02:40]} 22. Rcd1 {[%emt 0:00:46]} Kh8 {[%emt 0:01:01]} 23. Bd4+ {[%emt 0:05:44]} Bf6 {[%emt 0:00:48]} 24. e5 {[%emt 0:01:07]} dxe5 {[%emt 0:00:24]} 25. Nxe5 {[%emt 0:00:03]} Nxe5 {[%emt 0:00:30]} 26. Bxe5 {[%emt 0:00:54]} Qf8 {[%emt 0:00:20]} 27. Qxh4 {[%emt 0:04:29]} Qg7 {[%emt 0:00:58]} 28. Bxf6 {[%emt 0:00:43]} Qxf6 {[%emt 0:00:36]} 29. Qh5 {[%emt 0:01:13]} Qg7 {[%emt 0:00:34]} 30. Bf3 {[%emt 0:00:40]} f6 {[%emt 0:00:38]} 31. Ne4 {[%emt 0:00:30]} Bd7 {[%emt 0:00:24]} 32. Nc5 {[%emt 0:00:47]} Bc6 {[%emt 0:00:36]} 33. Bxc6 {[%emt 0:00:56]} bxc6 {[%emt 0:00:03]} 34. Rg1 {[%emt 0:00:25]} e5 {[%emt 0:00:53]} 35. Rd7 {[%emt 0:00:21]} Qg6 {[%emt 0:00:46]} 36. fxe5 {[%emt 0:00:36]} Qxh5+ {[%emt 0:00:25]} 37. gxh5 {[%emt 0:00:02]} Rxg1+ {[%emt 0:00:27]} 38. Kxg1 {[%emt 0:00:01]} fxe5 {[%emt 0:00:08]} 39. Rd6 {[%emt 0:00:13]} Rb8 {[%emt 0:01:00]} 40. b3 {[%emt 0:00:35]} Rg8+ {[%emt 0:00:32]} 41. Kf2 {[%emt 0:31:34]} Rf8+ {[%emt 0:08:27]} 42. Ke3 {[%emt 0:00:00]} Nf6 {[%emt 0:02:43]} 43. Rxc6 {[%emt 0:00:00]} Kh7 {[%emt 0:11:26]} 44. Rxa6 {[%emt 0:00:00]} Nxh5 {[%emt 0:01:31]} 45. Nd7 {[%emt 0:00:00]} Re8 {[%emt 0:04:52]} 46. c5 {[%emt 0:00:00]} Kg7 {[%emt 0:01:08]} 47. c6 {[%emt 0:00:00]} Nf4 {[%emt 0:01:45]} 48. Ra5 {[%emt 0:00:00]} Ne6 {[%emt 0:01:27]} 49. Rxe5 {[%emt 0:00:00]} Kf7 {[%emt 0:00:29]} 50. Nb6 {[%emt 0:00:50]} Re7 {[%emt 0:00:54]} 51. Nd5 {[%emt 0:02:04]} Re8 {[%emt 0:00:41]} 52. a4 {[%emt 0:00:51]} Rc8 {[%emt 0:00:30]} 53. c7 {[%emt 0:00:54]} h5 {[%emt 0:00:33]} 54. Rxh5 {[%emt 0:01:05]} Kg6 {[%emt 0:00:35]} 55. Rh4 {[%emt 0:01:13]} Kf7 {[%emt 0:00:26]} 56. b4 {[%emt 0:00:22]} 1-0

[Event "NED-ch Women 2018"]
[Site "Amsterdam"]
[Date "2018.07.03"]
[Round "1"]
[White "Lanchava, Tea"]
[Black "Ratsma, Rosa"]
[Result "1-0"]
[ECO "A15"]
[WhiteElo "2297"]
[BlackElo "2265"]
[Annotator "ChessBase"]
[PlyCount "151"]
[EventDate "2018.07.02"]
[EventType "tourn"]
[EventCountry "NED"]
[SourceTitle "playchess.com"]
[Source "ChessBase"]
[SourceQuality "1"]
[TimeControl "40/5400+30:1800+30"]

1. c4 {[%emt 0:00:00]} Nf6 {[%emt 0:00:00]} 2. g3 {[%emt 0:00:11]} e6 {[%emt 0:00:35]} 3. Bg2 {[%emt 0:02:45]} d5 {[%emt 0:00:41]} 4. a3 {[%emt 0:07:01]} Be7 {[%emt 0:07:04]} 5. d3 {[%emt 0:02:50]} O-O {[%emt 0:03:17]} 6. Nd2 {[%emt 0:00:57]} c5 {[%emt 0:02:37]} 7. Ngf3 {[%emt 0:03:58]} Nc6 {[%emt 0:01:47]} 8. O-O {[%emt 0:01:14]} Re8 {[%emt 0:04:49]} 9. cxd5 {[%emt 0:06:39]} exd5 {[%emt 0:02:56]} 10. b3 {[%emt 0:01:12]} d4 {[%emt 0:07:06]} 11. Bb2 {[%emt 0:01:39]} Bf5 {[%emt 0:06:11]} 12. h3 {[%emt 0:02:06]} Qd7 {[%emt 0:06:32]} 13. Kh2 {[%emt 0:00:52]} Nd5 {[%emt 0:02:49]} 14. Rc1 {[%emt 0:00:50]} h5 {[%emt 0:06:16]} 15. Ne4 {[%emt 0:09:30]} h4 {[%emt 0:08:52]} 16. Nxh4 {[%emt 0:03:16]} Bxh4 {[%emt 0:09:48]} 17. Nxc5 {[%emt 0:02:36]} Qd6 {[%emt 0:09:55]} 18. Nxb7 {[%emt 0:04:59]} Qh6 {[%emt 0:04:05]} 19. Rc5 {[%emt 0:05:33]} Bc8 {[%emt 0:07:22]} 20. Bc1 {[%emt 0:10:31]} Qe6 {[%emt 0:01:52]} 21. Rxd5 {[%emt 0:01:57]} Bxb7 {[%emt 0:00:30]} 22. gxh4 {[%emt 0:02:06]} Ne7 {[%emt 0:04:25]} 23. Rg5 {[%emt 0:03:57]} Bxg2 {[%emt 0:00:05]} 24. Rxg2 {[%emt 0:00:11]} Nf5 {[%emt 0:00:26]} 25. e4 {[%emt 0:11:28]} dxe3 {[%emt 0:00:25]} 26. fxe3 {[%emt 0:00:07]} Nxh4 {[%emt 0:01:22]} 27. Rg4 {[%emt 0:01:05]} Ng6 {[%emt 0:00:38]} 28. d4 {[%emt 0:01:15]} Rac8 {[%emt 0:00:27]} 29. Qd3 {[%emt 0:02:17]} Qd6+ {[%emt 0:00:35]} 30. Rg3 {[%emt 0:00:08]} Rc7 {[%emt 0:00:52]} 31. b4 {[%emt 0:03:52]} Rec8 {[%emt 0:00:21]} 32. Bd2 {[%emt 0:00:17]} Rc2 {[%emt 0:00:26]} 33. Rf2 {[%emt 0:01:40]} Ne7 {[%emt 0:00:51]} 34. Qe4 {[%emt 0:02:06]} g6 {[%emt 0:00:27]} 35. Kg2 {[%emt 0:01:19]} Nd5 {[%emt 0:00:24]} 36. Qf3 {[%emt 0:00:17]} R8c7 {[%emt 0:00:36]} 37. e4 {[%emt 0:00:21]} Nc3 {[%emt 0:00:33]} 38. Bf4 {[%emt 0:00:32]} Rxf2+ {[%emt 0:00:29]} 39. Qxf2 {[%emt 0:00:19]} Qc6 {[%emt 0:00:30]} 40. Bxc7 {[%emt 0:00:44]} Nxe4 {[%emt 0:00:14]} 41. Qf3 {[%emt 0:31:10]} Qc2+ {[%emt 0:01:31]} 42. Kh1 {[%emt 0:00:00]} Qxc7 {[%emt 0:01:43]} 43. Rg1 {[%emt 0:00:00]} Nd2 {[%emt 0:03:46]} 44. Qg2 {[%emt 0:00:00]} Qf4 {[%emt 0:02:01]} 45. d5 {[%emt 0:00:00]} Ne4 {[%emt 0:01:27]} 46. Re1 {[%emt 0:00:00]} Ng3+ {[%emt 0:04:48]} 47. Kg1 {[%emt 0:00:00]} Nf5 {[%emt 0:00:48]} 48. Qf2 {[%emt 0:00:00]} Qc4 {[%emt 0:03:14]} 49. Qf3 {[%emt 0:00:00]} Qd4+ {[%emt 0:01:27]} 50. Kh2 {[%emt 0:00:00]} Qd2+ {[%emt 0:01:10]} 51. Qe2 {[%emt 0:00:00]} Qxd5 {[%emt 0:04:40]} 52. Qe5 {[%emt 0:00:00]} Qb3 {[%emt 0:01:50]} 53. Rc1 {[%emt 0:00:00]} Kh7 {[%emt 0:01:46]} 54. Rc3 {[%emt 0:00:00]} Qb2+ {[%emt 0:00:53]} 55. Kg1 {[%emt 0:00:00]} Nh4 {[%emt 0:04:23]} 56. Qg3 {[%emt 0:00:00]} Qa1+ {[%emt 0:01:28]} 57. Kf2 {[%emt 0:00:00]} Qb2+ {[%emt 0:00:47]} 58. Kf1 {[%emt 0:00:52]} Qb1+ {[%emt 0:01:18]} 59. Ke2 {[%emt 0:00:17]} Nf5 {[%emt 0:00:36]} 60. Qd3 {[%emt 0:00:16]} Qb2+ {[%emt 0:00:34]} 61. Kd1 {[%emt 0:00:08]} Qf2 {[%emt 0:00:35]} 62. Qd2 {[%emt 0:01:05]} Qf1+ {[%emt 0:00:27]} 63. Kc2 {[%emt 0:00:06]} Qa1 {[%emt 0:00:24]} 64. Kb3 {[%emt 0:00:17]} Qb1+ {[%emt 0:00:22]} 65. Ka4 {[%emt 0:00:14]} Qe4 {[%emt 0:00:31]} 66. Rc7 {[%emt 0:00:08]} Qe8+ {[%emt 0:00:26]} 67. Qd7 {[%emt 0:00:09]} Qe2 {[%emt 0:00:43]} 68. Qxf7+ {[%emt 0:00:10]} Kh6 {[%emt 0:00:06]} 69. Rxa7 {[%emt 0:01:15]} Qd1+ {[%emt 0:00:39]} 70. Ka5 {[%emt 0:00:23]} Qd8+ {[%emt 0:00:16]} 71. Qc7 {[%emt 0:00:06]} Qd5+ {[%emt 0:00:31]} 72. b5 {[%emt 0:00:13]} Qd2+ {[%emt 0:00:32]} 73. Ka6 {[%emt 0:00:12]} Qe3 {[%emt 0:00:56]} 74. a4 {[%emt 0:00:34]} Qe6+ {[%emt 0:00:22]} 75. Qc6 {[%emt 0:00:32]} Qb3 {[%emt 0:00:42]} 76. Qc1+ {[%emt 0:00:10]} 1-0

[Event "NED-ch Women 2018"]
[Site "Amsterdam"]
[Date "2018.07.03"]
[Round "1"]
[White "De Mie, Mariska de"]
[Black "Haast, Anne"]
[Result "0-1"]
[ECO "C77"]
[WhiteElo "2193"]
[BlackElo "2343"]
[Annotator "ChessBase"]
[PlyCount "90"]
[EventDate "2018.07.02"]
[EventType "tourn"]
[EventCountry "NED"]
[SourceTitle "playchess.com"]
[Source "ChessBase"]
[SourceQuality "1"]
[TimeControl "40/5400+30:1800+30"]

1. e4 {[%emt 0:00:00]} e5 {[%emt 0:00:00]} 2. Nf3 {[%emt 0:00:00]} Nc6 {[%emt 0:00:26]} 3. Bb5 {[%emt 0:00:03]} a6 {[%emt 0:03:05]} 4. Ba4 {[%emt 0:00:09]} Nf6 {[%emt 0:01:20]} 5. d3 {[%emt 0:00:15]} b5 {[%emt 0:05:53]} 6. Bb3 {[%emt 0:00:07]} Be7 {[%emt 0:01:06]} 7. a4 {[%emt 0:03:44]} Rb8 {[%emt 0:03:33]} 8. axb5 {[%emt 0:02:39]} axb5 {[%emt 0:00:10]} 9. Nc3 {[%emt 0:00:29]} d6 {[%emt 0:04:03]} 10. Nd5 {[%emt 0:07:23]} Nxd5 {[%emt 0:04:47]} 11. Bxd5 {[%emt 0:16:34]} Bd7 {[%emt 0:05:57]} 12. Ng5 {[%emt 0:16:15]} Bxg5 {[%emt 0:01:40]} 13. Qh5 {[%emt 0:00:07]} O-O {[%emt 0:01:21]} 14. Bxg5 {[%emt 0:00:54]} Qe8 {[%emt 0:00:49]} 15. O-O {[%emt 0:05:32]} Be6 {[%emt 0:04:17]} 16. Bxe6 {[%emt 0:22:39]} Qxe6 {[%emt 0:03:05]} 17. Be3 {[%emt 0:00:16]} f5 {[%emt 0:18:11]} 18. Qh3 {[%emt 0:03:42]} Rbe8 {[%emt 0:11:06]} 19. Ra6 {[%emt 0:05:24]} Nd8 {[%emt 0:04:52]} 20. Ra7 {[%emt 0:03:00]} f4 {[%emt 0:03:57]} 21. Qxe6+ {[%emt 0:00:25]} Nxe6 {[%emt 0:00:29]} 22. Bd2 {[%emt 0:00:09]} Rc8 {[%emt 0:01:45]} 23. f3 {[%emt 0:05:44]} Nd4 {[%emt 0:02:37]} 24. c3 {[%emt 0:04:35]} Nb3 {[%emt 0:00:39]} 25. Be1 {[%emt 0:00:27]} Nc1 {[%emt 0:01:22]} 26. Rb7 {[%emt 0:00:29]} Nxd3 {[%emt 0:02:06]} 27. Rxb5 {[%emt 0:00:04]} Rb8 {[%emt 0:00:18]} 28. Rxb8 {[%emt 0:01:04]} Rxb8 {[%emt 0:00:01]} 29. b4 {[%emt 0:00:28]} Ra8 {[%emt 0:00:55]} 30. g3 {[%emt 0:01:01]} g5 {[%emt 0:04:06]} 31. Bd2 {[%emt 0:00:57]} Ra2 {[%emt 0:03:06]} 32. Rd1 {[%emt 0:00:09]} Nb2 {[%emt 0:00:25]} 33. Rb1 {[%emt 0:00:20]} Nc4 {[%emt 0:03:03]} 34. Be1 {[%emt 0:00:15]} Kf7 {[%emt 0:00:46]} 35. Bf2 {[%emt 0:00:58]} Nd2 {[%emt 0:01:01]} 36. Rd1 {[%emt 0:00:01]} Nxf3+ {[%emt 0:00:26]} 37. Kg2 {[%emt 0:00:13]} Nd2 {[%emt 0:01:41]} 38. Re1 {[%emt 0:00:50]} Rc2 {[%emt 0:00:47]} 39. h4 {[%emt 0:00:40]} gxh4 {[%emt 0:01:05]} 40. gxf4 {[%emt 0:00:13]} exf4 {[%emt 0:00:40]} 41. e5 {[%emt 0:03:36]} h3+ {[%emt 0:12:50]} 42. Kxh3 {[%emt 0:01:45]} Nf3 {[%emt 0:00:19]} 43. e6+ {[%emt 0:04:33]} Ke7 {[%emt 0:00:28]} 44. Rf1 {[%emt 0:02:55]} Kxe6 {[%emt 0:00:59]} 45. Kg2 {[%emt 0:05:18]} Ne5 {[%emt 0:01:49]} 0-1

[Event "NED-ch Women 2018"]
[Site "Amsterdam"]
[Date "2018.07.03"]
[Round "1"]
[White "Keetman, Maaike"]
[Black "Paulet, Iozefina"]
[Result "1/2-1/2"]
[ECO "C06"]
[WhiteElo "2190"]
[BlackElo "2286"]
[Annotator "ChessBase"]
[PlyCount "107"]
[EventDate "2018.07.02"]
[EventType "tourn"]
[EventCountry "NED"]
[SourceTitle "playchess.com"]
[Source "ChessBase"]
[SourceQuality "1"]
[TimeControl "40/5400+30:1800+30"]

1. e4 {[%emt 0:00:00]} e6 {[%emt 0:00:00]} 2. d4 {[%emt 0:00:00]} d5 {[%emt 0:00:00]} 3. Nd2 {[%emt 0:00:00]} Be7 {[%emt 0:00:00]} 4. Ngf3 {[%emt 0:00:06]} Nf6 {[%emt 0:01:20]} 5. e5 {[%emt 0:00:30]} Nfd7 {[%emt 0:00:05]} 6. Bd3 {[%emt 0:00:09]} c5 {[%emt 0:00:06]} 7. c3 {[%emt 0:00:04]} Nc6 {[%emt 0:00:14]} 8. O-O {[%emt 0:00:25]} g5 {[%emt 0:13:23]} 9. dxc5 {[%emt 0:01:00]} g4 {[%emt 0:00:11]} 10. Nd4 {[%emt 0:00:42]} Ndxe5 {[%emt 0:00:07]} 11. Bb5 {[%emt 0:14:37]} Bd7 {[%emt 0:00:48]} 12. Bxc6 {[%emt 0:01:20]} bxc6 {[%emt 0:02:07]} 13. b4 {[%emt 0:04:31]} Ng6 {[%emt 0:08:48]} 14. f4 {[%emt 0:09:01]} gxf3 {[%emt 0:04:56]} 15. Qxf3 {[%emt 0:02:53]} f6 {[%emt 0:00:20]} 16. N2b3 {[%emt 0:02:44]} e5 {[%emt 0:03:28]} 17. Nf5 {[%emt 0:01:34]} Bxf5 {[%emt 0:00:05]} 18. Qxf5 {[%emt 0:00:02]} Qd7 {[%emt 0:00:07]} 19. a4 {[%emt 0:21:59]} Qxf5 {[%emt 0:04:53]} 20. Rxf5 {[%emt 0:00:06]} h5 {[%emt 0:00:11]} 21. Be3 {[%emt 0:06:48]} a6 {[%emt 0:15:47]} 22. Rd1 {[%emt 0:06:29]} O-O-O {[%emt 0:11:57]} 23. Rf2 {[%emt 0:09:02]} Rhg8 {[%emt 0:06:18]} 24. Rb2 {[%emt 0:06:12]} f5 {[%emt 0:11:05]} 25. Na5 {[%emt 0:02:03]} f4 {[%emt 0:00:04]} 26. Bf2 {[%emt 0:01:01]} Kc7 {[%emt 0:00:03]} 27. b5 {[%emt 0:01:01]} axb5 {[%emt 0:00:04]} 28. axb5 {[%emt 0:00:05]} cxb5 {[%emt 0:00:03]} 29. Rxb5 {[%emt 0:00:29]} Rb8 {[%emt 0:01:05]} 30. Rb6 {[%emt 0:03:20]} d4 {[%emt 0:05:22]} 31. cxd4 {[%emt 0:01:32]} e4 {[%emt 0:02:51]} 32. d5 {[%emt 0:00:18]} Rxb6 {[%emt 0:00:03]} 33. cxb6+ {[%emt 0:00:22]} Kd7 {[%emt 0:00:08]} 34. b7 {[%emt 0:02:05]} e3 {[%emt 0:00:37]} 35. Be1 {[%emt 0:00:42]} Bd6 {[%emt 0:05:06]} 36. Rb1 {[%emt 0:00:53]} Ne5 {[%emt 0:00:17]} 37. Kf1 {[%emt 0:00:46]} Bb8 {[%emt 0:01:43]} 38. Bc3 {[%emt 0:00:45]} Ng4 {[%emt 0:04:09]} 39. Nc6 {[%emt 0:02:47]} Nxh2+ {[%emt 0:00:10]} 40. Kg1 {[%emt 0:00:35]} Ng4 {[%emt 0:01:17]} 41. Rf1 {[%emt 0:04:54]} Bd6 {[%emt 0:21:15]} 42. Bb4 {[%emt 0:13:40]} Bxb4 {[%emt 0:02:53]} 43. Nxb4 {[%emt 0:01:58]} Kc7 {[%emt 0:00:16]} 44. Rxf4 {[%emt 0:00:34]} Kxb7 {[%emt 0:00:05]} 45. Kf1 {[%emt 0:00:53]} Kc7 {[%emt 0:02:07]} 46. Nc2 {[%emt 0:02:39]} Kd6 {[%emt 0:03:21]} 47. Rf5 {[%emt 0:00:20]} Rb8 {[%emt 0:03:32]} 48. Rxh5 {[%emt 0:03:28]} Rb2 {[%emt 0:00:14]} 49. Rh4 {[%emt 0:01:24]} Rxc2 {[%emt 0:00:35]} 50. Rxg4 {[%emt 0:00:04]} Kxd5 {[%emt 0:00:16]} 51. Ke1 {[%emt 0:00:42]} Ke5 {[%emt 0:00:12]} 52. Rg8 {[%emt 0:00:49]} Kf4 {[%emt 0:00:27]} 53. Rf8+ {[%emt 0:00:05]} Kg4 {[%emt 0:01:06]} 54. Rg8+ {[%emt 0:00:05]} 1/2-1/2

[Event "NED-ch Women 2018"]
[Site "Amsterdam"]
[Date "2018.07.03"]
[Round "2"]
[White "Haast, Anne"]
[Black "Hortensius, Lisa"]
[Result "1-0"]
[ECO "B48"]
[WhiteElo "2343"]
[BlackElo "2169"]
[Annotator "NA"]
[PlyCount "65"]
[EventDate "2018.07.02"]
[EventType "tourn"]
[EventCountry "NED"]
[SourceTitle "playchess.com"]
[Source "ChessBase"]
[SourceQuality "1"]
[TimeControl "40/5400+30:1800+30"]

1. e4 {[%emt 0:00:00]} c5 {[%emt 0:00:00]} 2. Nf3 {[%emt 0:00:00]} e6 {[%emt 0:00:00]} 3. d4 {[%emt 0:00:13]} cxd4 {[%emt 0:00:12]} 4. Nxd4 {[%emt 0:00:14]} Nc6 {[%emt 0:00:26]} 5. Nc3 {[%emt 0:00:45]} Qc7 {[%emt 0:00:30]} 6. Be3 {[%emt 0:00:56]} a6 {[%emt 0:01:17]} 7. Qf3 {[%emt 0:01:22]} Ne5 {[%emt 0:02:13]} 8. Qg3 {[%emt 0:01:23]} b5 $14 {[%emt 0:02:53] LiveBook: 10 Games} 9. O-O-O {[%emt 0:07:15]} Nf6 {[%emt 0:04:39]} 10. f4 {[%emt 0:02:38]} Neg4 {[%emt 0:04:08]} 11. Bg1 {[%emt 0:00:58]} h5 {[%emt 0:01:46]} 12. Bd3 {[%emt 0:01:14]} Bb7 {[%emt 0:16:05]} 13. h3 {[%emt 0:01:57]} h4 {[%emt 0:11:16]} 14. Qf3 {[%emt 0:01:18]} Nh6 {[%emt 0:00:21]} 15. Qe3 {[%emt 0:01:05]} b4 {[%emt 0:15:18]} 16. Na4 {[%emt 0:01:20]} Be7 {[%emt 0:06:02]} 17. Kb1 {[%emt 0:09:27]} d5 {[%emt 0:06:39]} 18. e5 {[%emt 0:02:19]} Ne4 {[%emt 0:01:57]} 19. g4 {[%emt 0:30:07]} hxg3 {[%emt 0:09:18]} 20. Bxe4 {[%emt 0:00:46]} dxe4 {[%emt 0:00:07]} 21. Qxg3 {[%emt 0:01:19]} g6 {[%emt 0:03:35]} 22. Nxe6 {[%emt 0:06:17]} fxe6 {[%emt 0:04:22]} 23. Qxg6+ {[%emt 0:00:33]} Kf8 {[%emt 0:02:26]} 24. Bb6 {[%emt 0:06:00]} Qc6 {[%emt 0:01:57]} 25. Rhg1 {[%emt 0:00:48]} Nf5 {[%emt 0:00:37]} 26. Bc5 {[%emt 0:02:23]} Bxc5 {[%emt 0:03:26]} 27. Qf6+ {[%emt 0:00:57]} Ke8 {[%emt 0:00:05]} 28. Qxh8+ {[%emt 0:00:42]} Bf8 {[%emt 0:00:09]} 29. Qh5+ {[%emt 0:02:25]} Ke7 {[%emt 0:00:08]} 30. Qg5+ {[%emt 0:00:17]} Ke8 {[%emt 0:00:14]} 31. Qg6+ {[%emt 0:00:13]} Ke7 {[%emt 0:00:05]} 32. Qf6+ {[%emt 0:00:08]} Ke8 {[%emt 0:00:04]} 33. Rg8 {[%emt 0:01:09]} 1-0

[Event "NED-ch Women 2018"]
[Site "Amsterdam"]
[Date "2018.07.03"]
[Round "2"]
[White "Paulet, Iozefina"]
[Black "Peng, Zhaoqin"]
[Result "1/2-1/2"]
[ECO "B15"]
[WhiteElo "2286"]
[BlackElo "2352"]
[Annotator "NA"]
[PlyCount "132"]
[EventDate "2018.07.02"]
[EventType "tourn"]
[EventCountry "NED"]
[SourceTitle "playchess.com"]
[Source "ChessBase"]
[SourceQuality "1"]
[TimeControl "40/5400+30:1800+30"]

1. e4 {[%emt 0:00:00]} c6 {[%emt 0:00:00]} 2. d4 {[%emt 0:00:39]} d5 {[%emt 0:00:00]} 3. Nd2 {[%emt 0:00:06]} g6 {[%emt 0:00:06]} 4. h3 {[%emt 0:00:43]} dxe4 {[%emt 0:02:54]} 5. Nxe4 {[%emt 0:00:12]} Bg7 {[%emt 0:00:03] LiveBook: 57 Games} 6. Nf3 {[%emt 0:00:24]} Nd7 {[%emt 0:00:50]} 7. Bc4 {[%emt 0:01:23]} Ngf6 $14 {[%emt 0:00:31]} 8. Ned2 {[%emt 0:11:11]} O-O {[%emt 0:01:16]} 9. O-O {[%emt 0:00:11]} c5 {[%emt 0:09:17]} 10. c3 {[%emt 0:06:20]} cxd4 {[%emt 0:04:15]} 11. cxd4 {[%emt 0:00:06]} Nb6 {[%emt 0:08:03]} 12. Bb3 {[%emt 0:08:28]} a5 {[%emt 0:03:39]} 13. Nb1 {[%emt 0:09:28]} a4 {[%emt 0:12:23]} 14. Bc2 {[%emt 0:00:31]} Bd7 {[%emt 0:00:08]} 15. Nc3 {[%emt 0:04:07]} Qc7 {[%emt 0:06:40]} 16. Ne5 {[%emt 0:04:11]} a3 {[%emt 0:12:17]} 17. Nxd7 {[%emt 0:00:42]} Nfxd7 {[%emt 0:02:55]} 18. Nb5 {[%emt 0:08:42]} axb2 {[%emt 0:00:27]} 19. Bxb2 {[%emt 0:00:09]} Qc6 {[%emt 0:00:21]} 20. a4 {[%emt 0:01:05]} Nf6 {[%emt 0:07:48]} 21. Rc1 {[%emt 0:05:59]} Qd7 {[%emt 0:00:43]} 22. Bb3 {[%emt 0:02:07]} Rfc8 {[%emt 0:01:18]} 23. Rc5 {[%emt 0:19:01]} Nbd5 {[%emt 0:03:47]} 24. Qf3 {[%emt 0:00:49]} e6 {[%emt 0:00:03]} 25. Ba3 {[%emt 0:08:34]} b6 {[%emt 0:00:37]} 26. Rxc8+ {[%emt 0:00:13]} Rxc8 {[%emt 0:00:01]} 27. Bd6 {[%emt 0:05:20]} Nc3 {[%emt 0:07:12]} 28. Be5 {[%emt 0:00:06]} Nxb5 {[%emt 0:00:21]} 29. axb5 {[%emt 0:00:05]} Nd5 {[%emt 0:00:07]} 30. Bxd5 {[%emt 0:02:39]} exd5 {[%emt 0:06:34]} 31. Bxg7 {[%emt 0:00:03]} Kxg7 {[%emt 0:00:10]} 32. Qe2 {[%emt 0:01:26]} Qe6 {[%emt 0:04:55]} 33. Qd2 {[%emt 0:00:35]} Qe4 {[%emt 0:03:33]} 34. Re1 {[%emt 0:00:40]} Rc2 {[%emt 0:00:09]} 35. Qe3 {[%emt 0:00:36]} Qxe3 {[%emt 0:00:47]} 36. fxe3 {[%emt 0:00:04]} Rb2 {[%emt 0:00:05]} 37. Rc1 {[%emt 0:00:22]} Rxb5 {[%emt 0:00:51]} 38. Rc6 {[%emt 0:00:02]} h5 {[%emt 0:01:53]} 39. Kf2 {[%emt 0:00:05]} Kf8 {[%emt 0:01:08]} 40. Kf3 {[%emt 0:00:29]} Ke7 {[%emt 0:00:21]} 41. Kf4 {[%emt 0:09:54]} f6 {[%emt 0:04:22]} 42. g4 {[%emt 0:02:45]} hxg4 {[%emt 0:01:36]} 43. hxg4 {[%emt 0:00:04]} Rb1 {[%emt 0:00:26]} 44. g5 {[%emt 0:07:31]} Rf1+ {[%emt 0:01:24]} 45. Kg3 {[%emt 0:00:01]} Rg1+ {[%emt 0:01:20]} 46. Kf2 {[%emt 0:00:01]} Rxg5 {[%emt 0:00:49]} 47. Rxb6 {[%emt 0:00:03]} Rf5+ {[%emt 0:06:35]} 48. Kg2 {[%emt 0:00:27]} Rh5 {[%emt 0:02:57]} 49. Ra6 {[%emt 0:00:21]} Rh8 {[%emt 0:01:08]} 50. Kg3 {[%emt 0:01:30]} Rd8 {[%emt 0:02:50]} 51. Kf4 {[%emt 0:00:41]} Rd6 {[%emt 0:01:26]} 52. Ra7+ {[%emt 0:03:12]} Ke6 {[%emt 0:00:19]} 53. Rg7 {[%emt 0:00:41]} g5+ {[%emt 0:00:57]} 54. Kg4 {[%emt 0:00:01]} Rd7 {[%emt 0:01:12]} 55. Rg8 {[%emt 0:00:08]} Kf7 {[%emt 0:03:00]} 56. Ra8 {[%emt 0:00:17]} Re7 {[%emt 0:00:44]} 57. Kf3 {[%emt 0:01:16]} g4+ {[%emt 0:01:21]} 58. Kxg4 {[%emt 0:00:32]} Rxe3 {[%emt 0:00:06]} 59. Kf5 {[%emt 0:02:59]} Rf3+ {[%emt 0:00:39]} 60. Kg4 {[%emt 0:00:07]} Rf1 {[%emt 0:00:54]} 61. Ra6 {[%emt 0:01:13]} Kg6 {[%emt 0:00:56]} 62. Rd6 {[%emt 0:00:40]} Rg1+ {[%emt 0:00:27]} 63. Kf4 {[%emt 0:00:30]} Rg5 {[%emt 0:01:03]} 64. Rd7 {[%emt 0:03:43]} Rh5 {[%emt 0:00:55]} 65. Kg4 {[%emt 0:00:02]} Rg5+ {[%emt 0:01:46]} 66. Kf4 {[%emt 0:00:04]} Rh5 {[%emt 0:00:00] Ke4 [%emt 00:00:04]} 1/2-1/2